Cogmind - Beta 17 @@@ ROGUE MODE // 2026.07.17 @ 18:18:19 Player: Ice_Kraken505 Result: Destroyed by Y-45 Defender with Beam Rifle Performance ------------- Evolutions (1) 500 Regions Visited (3) 600 Robots Destroyed (69) 345 Value Destroyed (1446) 1446 Prototype IDs (2) 40 Alien Tech Used (0) 0 Bonus (0) 0 TOTAL SCORE: 2931 Bonus ------- None Cogmind --------- Core Integrity 0/400 Matter 281/300 Energy 80/100 System Corruption 0% Temperature Cool (9) Movement Treading (160) Location -9/Storage Parts ------- > --- POWER (1) -------- (None) > --- PROPULSION (3) --- Light Treads > --- UTILITY (3) ------ Machine Analyzer Signal Interpreter Light Armor Plating > --- WEAPON (2) ------- Light Assault Rifle > --- INVENTORY (5) ---- Grenade Launcher Datajack Axe Peak State ------------ > --- POWER ------------ Light Ion Engine > --- PROPULSION ------- Improved Hover Unit > --- UTILITY ---------- Machine Analyzer Signal Interpreter Drone Bay > --- WEAPON ----------- EM Shotgun Light Assault Rifle > --- INVENTORY -------- Light Ion Engine EM Shotgun Grenade Launcher Datajack Axe [Rating: 15] Favorites ----------- Power Light Ion Engine Engine Light Ion Engine Power Core Light Nuclear Core Propulsion Wheel Wheel Wheel Hover Unit Hover Unit Utility Seismic Detector Device Seismic Detector Storage Small Storage Unit Processor Machine Analyzer Hackware Hacking Suite Protection Light Armor Plating Weapon Light Assault Rifle Energy Gun EM Shotgun Energy Cannon Beam Cannon Ballistic Gun Light Assault Rifle Slashing Weapon Axe Special Melee Weapon Datajack Build | -11 -10 -9 -9 ------- Run | Yrd Mat Mat Sto Slots Evolved 2 | . . 2 . Power . | . . . . Propulsion 1 | . . 1 . Utility 1 | . . 1 . Weapon . | . . . . Parts Attached 52 | 8 12 25 7 Power 11 | 1 3 5 2 Engine 10 | 1 2 5 2 Core 1 | . 1 . . Reactor . | . . . . Propulsion 16 | 2 2 9 3 Treads 1 | . . . 1 Leg . | . . . . Wheel 7 | 2 . 5 . Hover 8 | . 2 4 2 Flight . | . . . . Utility 10 | 2 1 5 2 Device 5 | 1 1 2 1 Storage 1 | 1 . . . Processor 2 | . . 2 . Hackware 1 | . . 1 . Protection 1 | . . . 1 Artifact . | . . . . Weapon 15 | 3 6 6 . Energy Gun 4 | 1 . 3 . Energy Cannon 1 | . 1 . . Ballistic Gun 7 | 2 3 2 . Ballistic Cannon . | . . . . Launcher . | . . . . Special Weapon . | . . . . Impact Weapon . | . . . . Slashing Weapon 2 | . 1 1 . Piercing Weapon . | . . . . Special Melee Weapon 1 | . 1 . . Unidentified Prototypes . | . . . . Parts Lost 22 | . 2 13 7 Power 5 | . 1 2 2 Propulsion 8 | . . 5 3 Utility 4 | . . 4 . Weapon 5 | . 1 2 2 Highest Loss Streak 7 | . 1 3 7 To Critical Strikes . | . . . . Average Backups 5 | 2 6 4 4 Power . | . . . . Propulsion . | 1 1 . . Utility . | . . . . Weapon 2 | 1 3 2 2 Tool/Special . | . . . . Unused Backups 11 | . 5 5 1 Power 3 | . 2 1 . Propulsion 2 | . 2 . . Utility 3 | . . 3 . Weapon 3 | . 1 1 1 Tool/Special . | . . . . Average Slot Usage (%) 83 | . 99 74 78 Engine 9 | . 8 10 11 Core 1 | . 4 . . Wheel 13 | . 24 8 . Hover 7 | . 3 7 22 Device 16 | . 17 17 1 Storage 3 | . 10 . . Processor 4 | . . 3 22 Hackware 3 | . . 5 . Energy Gun 3 | . 1 2 13 Energy Cannon 2 | . 4 2 . Ballistic Gun 15 | . 17 15 7 Special Melee Weapon 1 | . 2 . . Peak Build Rating 15 | 7 11 14 15 Average Rating 9 | 5 9 9 11 On Entrance 6 | . 7 9 10 Avg Prop Armor Cover (%) . | . . . . Naked Turns . | . . . . Heaviest Build 18 | 15 18 16 13 Greatest Support 48 | 20 26 48 22 Greatest Overweight (x) 3 | 2 1 3 1 Average Overweight (x) . | . . . . Largest Inventory Capacity 8 | 8 8 5 5 Average Capacity 5 | 7 7 5 5 Most Carried 8 | 5 8 5 5 Average Carried 5 | 2 6 4 4 Final Capacity 8 | 8 5 5 5 Final Carried 5 | 5 5 5 3 Class Distribution -------------------- 52% | Scavenger-Mutant 47% | Mutant Dominant Class ---------------- Mutant | -10/Materials Scavenger-Mutant | -9/Materials Scavenger-Mutant | -9/Storage Resources | -11 -10 -9 -9 ----------- Run | Yrd Mat Mat Sto Matter Collected 1392 | 181 620 534 57 Remotely . | . . . . Salvage Created 2239 | 74 821 1115 229 Parts 169 | 10 59 82 18 Haulers Intercepted 2 | . 1 1 . Recyclers Shooed 3 | 1 . 2 . Parts Field Recycled . | . . . . Retrieved Matter . | . . . . Parts Self-Destructed . | . . . . Prevented . | . . . . Parts Restored . | . . . . Kills | -11 -10 -9 -9 ------- Run | Yrd Mat Mat Sto Combat Hostiles Destroyed 47 | . 17 26 4 Melee 4 | . . 4 . Guns 31 | . 10 18 3 Cannons 11 | . 7 4 . AOE 1 | . . . 1 Classes Destroyed 12 | 1 7 4 . Worker 4 | . 1 3 . Builder 1 | . . 1 . Tunneler 3 | 3 . . . Hauler 2 | . 1 1 . Recycler 4 | . . 4 . Mechanic 2 | . 1 1 . Operator 2 | . . 1 1 Watcher 4 | . 3 1 . Swarmer 21 | . 3 18 . Grunt 15 | . 11 3 1 Sentry 8 | . . 5 3 Subdweller 3 | . 3 . . Best Kill Streak 8 | 2 5 8 2 Combat Bots Only 8 | . 5 8 2 Max Kills in Single Turn 2 | 1 2 1 1 Gunslinging . | . . . . Exploded 1 | . . . 1 Melee 1 | . . 1 . Uniques/NPCs Destroyed . | . . . . Combat | -11 -10 -9 -9 -------- Run | Yrd Mat Mat Sto Hostile Shots Fired 237 | . 48 146 43 Missed 59 | . 11 37 11 Hits 178 | . 37 109 32 Projectile 178 | . 37 109 32 Critical Strikes 6 | . . 3 3 Damage Taken 2175 | . 567 1107 501 Core 590 | . 178 277 135 Absorbed by Shields . | . . . . Regen/Repaired (Parts) 49 | . 13 36 . Core Remaining (%) 64 | 100 28 . . Volleys Fired 164 | 5 55 81 23 Largest 2 | 2 2 2 2 Hottest 90 | 60 90 90 90 Shots Fired 306 | 10 110 150 36 Gun 275 | 10 89 140 36 Cannon 31 | . 21 10 . Launcher . | . . . . Special . | . . . . Kinetic 219 | 5 85 113 16 Thermal 50 | . 21 29 . Explosive . | . . . . Electromagnetic 37 | 5 4 8 20 Robot Hit Streak 21 | 2 10 15 21 Robot Miss Streak 5 | 2 4 5 2 Penetration Max . | . . . . Secondary Targets 3 | . 1 2 . Max Gunslinging Chain 1 | . 1 1 . Shots Hit Robots 235 | 5 82 118 30 Core Hits 111 | 3 37 57 14 Critical Kills 1 | . 1 . . Critical Parts Destroyed 1 | . . 1 . Critical Strikes 4 | . 1 3 . Burn 2 | . . 2 . Destroy 2 | . 1 1 . Melee Attacks 49 | . 18 31 . Impact . | . . . . Slashing 28 | . 6 22 . Piercing . | . . . . Sneak Attacks 18 | . 10 8 . Combat Hostiles 1 | . . 1 . Follow-up Attacks . | . . . . Damage Inflicted 3209 | 64 1065 1571 509 Guns 2354 | 64 804 1097 389 Cannons 417 | . 261 156 . Explosions 120 | . . . 120 Melee 318 | . . 318 . Ramming . | . . . . Kinetic 1704 | 37 770 759 138 Thermal 771 | . 261 390 120 Explosive . | . . . . Electromagnetic 416 | 27 34 104 251 Impact . | . . . . Slashing 318 | . . 318 . Piercing . | . . . . Highest Corruption . | . . . . Average Corruption . | . . . . Corruption Purged . | . . . . Corruption Blocked . | . . . . Overload Shots . | . . . . Overflow Damage 2 | . . 2 . Projectiles . | . . . . Explosions . | . . . . Melee 2 | . . 2 . Knockbacks . | . . . . Impact . | . . . . Kinetic . | . . . . Secondary . | . . . . Self-Inflicted Damage 43 | . . . 43 Shots 1 | . . . 1 Rammed . | . . . . Targets Rammed . | . . . . Kicked . | . . . . Crushed . | . . . . Highest Temperature 138 | . 138 136 124 Average Temperature 39 | . 35 40 42 Received Heat Transfer 558 | . 144 210 204 Siege Activations . | . . . . Martial Activations . | . . . . Shielding Activations . | . . . . Robots Disrupted . | . . . . Combat Hostiles . | . . . . Robots Corrupted . | . . . . Combat Hostiles . | . . . . Parts Fried 1 | . . . 1 Impact Corruptions . | . . . . Robots Melted . | . . . . Combat Hostiles . | . . . . Parts Melted 5 | . . 5 . Heat Transferred 1741 | . 555 1036 150 Parts Sabotaged . | . . . . Parts Stolen . | . . . . Parts Stripped . | . . . . Power Chain Reactions 1 | . . . 1 Alert | -11 -10 -9 -9 ------- Run | Yrd Mat Mat Sto Maximum Alert Level 1 | . . 1 . Low Security (%) 78 | 100 100 58 100 Level 1 21 | . . 41 . Level 2 . | . . . . Level 3 . | . . . . Level 4 . | . . . . Level 5 . | . . . . High Security . | . . . . Max Security . | . . . . Peak Influence 280 | 5 178 280 145 Initial 111 | . . 72 111 Average 118 | 1 62 167 90 Influence Increases 1540 | 15 482 879 164 Destroy 0b10 Robot/C 880 | . 280 520 80 Destroy 0b10 Robot/NC 110 | 15 30 60 5 Destroy Leader 222 | . 78 104 40 Successful Hack 98 | . 55 24 19 Disable Machine 60 | . . 45 15 Destroy Structure 20 | . 9 6 5 Partial Spotted 30 | . . 30 . Lose Combat Pursuer 120 | . 30 90 . Influence Decreases 1475 | 15 310 786 364 Entered New Map 254 | . . 100 154 Time Decay 991 | 15 300 556 120 Lost Part 210 | . 10 130 70 Lost Ally 20 | . . . 20 Squads Dispatched 10 | . 4 3 3 Investigation 8 | . 4 3 1 Extermination . | . . . . Reinforcement 1 | . . . 1 Assault . | . . . . Garrison 1 | . . . 1 Intercept . | . . . . Searches Triggered . | . . . . Construction Impeded . | . . . . Haulers Reinforced . | . . . . Active Scanning Responses . | . . . . Cargo Convoy Interrupts . | . . . . Stealth | -11 -10 -9 -9 --------- Run | Yrd Mat Mat Sto Distress Signals 5 | . . 4 1 Communications Jammed . | . . . . Distress Signals . | . . . . Times Spotted 92 | . 24 60 8 Peak Tracking Total 7 | . 4 7 3 Tactical Retreats 14 | . 1 13 . ECM-based Alert Blocks 15 | . . 15 . Traps | -11 -10 -9 -9 ------- Run | Yrd Mat Mat Sto Traps Triggered 1 | . 1 . . Indirectly . | . . . . Trap Hack Attempts . | . . . . Triggered . | . . . . Disarmed . | . . . . Reprogrammed . | . . . . Reused . | . . . . Traps Extracted . | . . . . Installed . | . . . . Triggered . | . . . . Machines | -11 -10 -9 -9 ---------- Run | Yrd Mat Mat Sto Machines Disabled 5 | . 1 3 1 Max in Single Turn 1 | . 1 1 1 Machines Repaired . | . . . . Machines Dismantled . | . . . . Machines Sabotaged . | . . . . Overloaded Fab Kills . | . . . . Hacking | -11 -10 -9 -9 --------- Run | Yrd Mat Mat Sto Machines Accessed 26 | . 9 12 5 Terminals 18 | . 6 8 4 Fabricators . | . . . . Repair Stations 2 | . 1 1 . Recycling Units 3 | . 2 1 . Scanalyzers 2 | . . 2 . Garrison Access 1 | . . . 1 Total Hacks 69 | . 20 39 10 Successful 45 | . 13 28 4 Failed 23 | . 7 10 6 Catastrophic 5 | . 2 3 . Database Lockouts 1 | . . 1 . Manual 9 | . 2 4 3 Terminals 42 | . 14 20 8 Fabricators . | . . . . Repair Stations 7 | . 3 4 . Recycling Units 7 | . 3 4 . Scanalyzers 11 | . . 11 . Garrison Access 2 | . . . 2 Terminal Hacks 21 | . 8 10 3 Robot Analysis 1 | . . 1 . Prototype ID Bank 1 | . . . 1 Open Door 1 | . . . 1 Branch Access Points 3 | . 1 1 1 Emergency Access Points 3 | . . 3 . Terminal Index 1 | . 1 . . Recycling Unit Index 1 | . 1 . . Scanalyzer Index 3 | . 1 2 . Locate Traps 1 | . 1 . . Maintenance Status 1 | . . 1 . Transport Status 1 | . 1 . . Investigation Status 1 | . . 1 . Hauler Manifests 2 | . 1 1 . Zone Layout 1 | . 1 . . Fabricator Hacks . | . . . . Repair Station Hacks 6 | . 2 4 . Scan Component 3 | . 1 2 . Repair 3 | . 1 2 . Recycling Unit Hacks 7 | . 3 4 . Report Inventory 4 | . 2 2 . Retrieve Matter 1 | . . 1 . Retrieve Components 2 | . 1 1 . Scanalyzer 9 | . . 9 . Insert Component 1 | . . 1 . Analyze 1 | . . 1 . Retrieve Study 7 | . . 7 . Garrison Access Hacks . | . . . . Unauthorized Hacks 2 | . . 1 1 Terminals 2 | . . 1 1 Track 1 | . . 1 . Operators 1 | . . . 1 Fabricators . | . . . . Repair Stations . | . . . . Recycling Units . | . . . . Scanalyzers . | . . . . Garrison Access . | . . . . Data Cores Recovered 1 | . . 1 . Used . | . . . . Hacking Detections 20 | . 7 9 4 Full Trace Events 10 | . 4 4 2 Feedback Events . | . . . . Feedback Blocked . | . . . . Robot Schematics Acquired . | . . . . Robots Built . | . . . . Authchips . | . . . . Time . | . . . . Total Robot Build Rating . | . . . . Part Schematics Acquired 1 | . . 1 . Parts Built . | . . . . Authchips . | . . . . Time . | . . . . Total Part Build Rating . | . . . . Part Studies Acquired 7 | . . 7 . Parts Repaired 3 | . 1 2 . Time 68 | . 16 52 . Parts Recycled . | . . . . Recycled Matter . | . . . . Retrieved Matter 203 | . . 203 . Retrieved Components 19 | . 9 10 . Parts Scanalyzed 1 | . . 1 . Part Schematics Acquired 1 | . . 1 . Parts Damaged . | . . . . Bothacking | -11 -10 -9 -9 ------------ Run | Yrd Mat Mat Sto Used RIF Installer . | . . . . Robots Hacked 9 | . 7 2 . Non-combat 9 | . 7 2 . Combat . | . . . . Robot Hacks Applied 12 | . 8 4 . parse_system 3 | . 1 2 . no_distress 6 | . 5 1 . find_recycling 1 | . 1 . . find_station 2 | . 1 1 . Relay Couplers Released . | . . . . Fabnet Peak Effective % . | . . . . Robots Rewired . | . . . . Allies Hacked . | . . . . Hacks Repelled . | . . . . Allies | -11 -10 -9 -9 -------- Run | Yrd Mat Mat Sto Total Allies . | . . . . Largest Group . | . . . . Highest-Rated Group . | . . . . Highest-Rated Ally . | . . . . Total Orders . | . . . . Ally Attacks . | . . . . Total Damage . | . . . . Kills . | . . . . Allies Corrupted . | . . . . Allies Melted . | . . . . Intel | -11 -10 -9 -9 ------- Run | Yrd Mat Mat Sto Active Infowar (turns) 2976 | 67 1042 1617 250 Seismic 2026 | 67 1042 917 . Machine Analysis 637 | . . 387 250 ECM 1294 | . . 1294 . Robot Analysis Total 1 | . . 1 . Derelict Logs Recovered . | . . . . Drone Launches 2 | . . . 2 Drone Recoveries . | . . . . Exploration | -11 -10 -9 -9 ------------- Run | Yrd Mat Mat Sto Turns Passed 3052 | 125 1051 1626 250 Spaces Moved 2558 | 93 965 1294 206 Core 124 | 9 . 114 1 Treads . | . . . . Legs . | . . . . Wheels 1425 | 84 777 564 . Hover 1009 | . 188 616 205 Flight . | . . . . Fastest Speed 50 | 50 56 52 52 Average Speed 80 | 81 75 87 60 Slowest Speed 200 | 150 95 200 120 Overloaded Moves . | . . . . Propulsion Burnouts . | . . . . Robots Hopped . | . . . . Potential Cave-ins . | . . . . Cave-ins Triggered . | . . . . Exploration Rate (%) 48 | 3 81 83 28 Regions Visited 3 Branch Regions 1 Pre-discovered Areas . | . . . . Known Exits Taken 1 | . . 1 . Unknown Exits Taken 2 | 1 1 . . Scrap Searched . | . . . . Spaces Dug 7 | . 4 3 . Terrain Destroyed 12 | . 4 4 4 Melee 7 | . 4 3 . Projectile 1 | . . 1 . AOE 4 | . . . 4 Terrain Rammed . | . . . . Walls Destroyed . | . . . . Machines Disabled . | . . . . Actions | -11 -10 -9 -9 --------- Run | Yrd Mat Mat Sto Total 3205 | 127 1169 1611 298 Wait 269 | 18 70 124 57 Move 2555 | 92 964 1293 206 Hop . | . . . . Pick Up 35 | 4 16 14 1 Fast Attach 36 | 7 6 18 5 Attach 12 | . 3 7 2 Detach 9 | . 3 6 . Swap 37 | 1 17 17 2 Drop 39 | . 17 20 2 Fire 164 | 5 55 81 23 Melee 49 | . 18 31 . Ram . | . . . . Kick . | . . . . Crush . | . . . . Escape Stasis . | . . . . Rewire . | . . . . Trap . | . . . . Miscellaneous . | . . . . Route ------- -11/Scrapyard -10/Materials (discovered 5 exits: *Mat x3 / *Min / [*Sub]) -9/Materials (discovered 4 exits: *Mat x2 / *Min / *Sto) -9/Storage (discovered 1 exit: Rec) History --------- Turn | Location | Event 23 | -11/Scrapyard | Discovered new exit (range 16) 126 | -11/Scrapyard | Entered Materials 183 | -10/Materials | Discovered new exit (range 16) 239 | -10/Materials | Discovered new exit (range 16) 308 | -10/Materials | Build established: Mutant 404 | -10/Materials | Discovered new exit (range 11) 466 | -10/Materials | Identified exit to Mines 526 | -10/Materials | Discovered new exit (range 16) 626 | -10/Materials | Derelicts attacked the area 676 | -10/Materials | Core integrity fell below 50% 1053 | -10/Materials | Discovered new exit (range 14) 1167 | -10/Materials | Repaired Sub. Power Source 1177 | -10/Materials | Entered another Materials area 1177 | -9/Materials | Evolved 2 slots: Propulsion x1, Utility x1 1294 | -9/Materials | Build established: Scavenger-Mutant 1366 | -9/Materials | Discovered new exit (range 10) 1398 | -9/Materials | Identified exit to Mines 1398 | -9/Materials | Identified exit to Storage 1501 | -9/Materials | Lost 3 parts (1n1u1w) 1522 | -9/Materials | Central database locked down 1740 | -9/Materials | Repaired ECM Suite 1767 | -9/Materials | Repaired Lgt. Ion Engine+ 2130 | -9/Materials | Core integrity fell below 50% 2160 | -9/Materials | Destroyed 8 combat bots 2187 | -9/Materials | Discovered new exit (range 16) 2750 | -9/Materials | Discovered new exit (range 3) 2754 | -9/Materials | Identified exit to Materials 2803 | -9/Materials | Entered Storage 2907 | -9/Storage | Identified exit to Recycling 3023 | -9/Storage | Core integrity fell below 20% 3025 | -9/Storage | Garrison activated, responded to threat 3053 | -9/Storage | Destroyed by Y-45 Defender with Beam Rifle Last Messages --------------- Y-45 Defender destroyed. Door malfunctions. Chain reaction triggered in Imp. Ion Engine. Y-45 Defender destroyed. Door Terminal disabled. Lgt. Ion Engine+ destroyed. Y-45 Defender calls for garrison reinforcements. ALERT: Activating Garrison Access S001. Imp. Hover Unit+ destroyed. EM Shotgun destroyed. Acquired Lgt. Armor Plating. EM Shotgun destroyed. Hover Unit+ destroyed. Critical hit (Burn: +37). Y-45 Defender misfires. Critical hit (Burn: +37). Hover Unit+ destroyed. Lgt. Ion Engine+ destroyed. Y-45 Defender misfires. Acquired Lgt. Treads. Map ----- +----------------------------------------------------+ | ??########## """"" ## """" #?????? | | ??#! !## # """"" ## """" #?????? | | ??#! !## # ## ##????? | | ??#! !## # """"" ## #????? | | ??#! ## # """"" ## ][##????? | | ??## ### # """"" ## ] #?????? | | ??#T + # ! ## =* #?????? | | ??## # #####+#########/#####????? | | ???##### %! * [% ##???? | | ???????# %% T#???? | | ???????# ##???? | | ???????# #####+########### #????? | | ???????# # ! #?????# #????? | | ?####### # #?????# #????? | | # # # """"" #?????# #????? | | # """ # # """"" #?????# #????? | | # "R" + # """"" #?????# #????? | | # " " # # ####### #????? | | # # # # ## #????? | | # """ # # # " ## #????? | | # """ # ########### T ## ##???? | | # """ # ####??????# " # #???? | | # # ##;#??????# # #???? | | ??""" # !; ="??????# # T #???? | | ??""" # [=Y%!"??????# + #???? | | ??""" # =Y@ "??????# # #???? | | ???? # !#; #??????# ### ###???? | | ??"?"# # ####??????########/#?????? | | ??"R"?## #?????????# #?????? | | ??"""??# #?????????# """ #?????? | | ???????# ####??????# """ #?????? | | ???????# """#??????# """ #?????? | | ???????# G"#??????# #??"""" | | ???????# """#??????# """ #??"""" | | ???????# ####??????# """ #??"""" | | ???????# #?????????# """ #?????? | | ???????# #?????????# #?????? | | ???????# #????????????##+####?????? | | ???????# #????????????????????????? | | ???????# #????????????????????????? | | ???????# ?????????????????????????? | | ??????? ?????????????????????????? | | ??????? ?????????????????????????? | | ??????# ?????????????????????????? | | ??????? ?????????????????????????? | | ??????# ?????????????????????????? | | ????????## ?????????????????????????? | | ????T???????????????????????????????? | | ????????????????????????????????????? | | ???"""??????????????????????????????? | +----------------------------------------------------+ Best States ------------- Heat Dissipation 28 Energy Generation 15 Energy Capacity 265 Matter Stores 300 Matter Capacity 300 Sight Range 16 Terrain Scan Density 10 ECM Strength 1 Additional Mass Support 6 Armor Coverage 150 Evasion (%) 62 Offensive Hacking 10 Item Schematics ----------------- Imp. Hover Unit | -9/Materials | Scanalyzed Robot Schematics ------------------ None Fabricated ------------ Nothing Repaired ---------- Sub. Power Source | 74% | -10/Materials ECM Suite | 5% | -9/Materials Lgt. Ion Engine | 57% | -9/Materials Studied --------- Imp. Hover Unit | -9/Materials | Hacked Hover Unit | -9/Materials | Hacked Grenade Launcher | -9/Materials | Hacked Beam Cannon | -9/Materials | Hacked Lgt. Assault Rifle | -9/Materials | Hacked Mining Laser | -9/Materials | Hacked Lgt. Ion Engine | -9/Materials | Hacked Alien Tech Used ----------------- None Achievements -------------- None Challenges ------------ None Game ------ Seed HoverThrusterRailcannon Manual? 0 Play Time 00:57:46 Cumulative 31.7 hours Start 2026.07.17 @ 17:20:20 End 2026.07.17 @ 18:18:19 Sessions 1 Manual Loads 0 Difficulty Rogue Special Mode None Game No. 33 Rogue 33 Adventurer 0 Explorer 0 Win Type - Total 0 Types 0/0/0/0/0/0/0/0/0/0 Lore% 26 Gallery% 27 Achievement% 19 Wizard Run 0 Options --------- Layout 1 ASCII 0 Keyboard 1 Movement Arrows Keybinds 0 Fullscreen 2 Font 24/Smallcaps Map View 50x35 Zoom Use 0% Tactical HUD 0 Map Filters NONE Filters NONE Steam 1 RUN: 5090a2d1-f769-4eae-ad45-602b5530325e